[Event "15. ročník Dobrovický rapid Tereos TTD a.s."]
[Site "Dobrovice, Czech Republic"]
[Date "2020.02.29"]
[Round "3.13"]
[White "Petrun Milan"]
[Black "Burdalev Kirill"]
[Result "0-1"]
[TimeControl "15m + 3s / tah"]
[WhiteElo "1955"]
[BlackElo "2334"]

1. d4 {[%clk 00:15:00]} {[%emt 00:00:05]} Nf6 {[%clk 00:15:05]} {[%emt
00:00:02]} 2. c4 {[%clk 00:15:01]} {[%emt 00:00:01]} e6 {[%clk 00:15:07]}
{[%emt 00:00:01]} 3. Nf3 {[%clk 00:14:54]} {[%emt 00:00:11]} d5 {[%clk
00:14:58]} {[%emt 00:00:12]} 4. Nc3 {[%clk 00:14:42]} {[%emt 00:00:14]} Bb4
{[%clk 00:14:47]} {[%emt 00:00:14]} 5. Bg5 {[%clk 00:14:38]} {[%emt 00:00:07]}
h6 {[%clk 00:14:48]} {[%emt 00:00:02]} 6. Bd2 {[%clk 00:14:18]} {[%emt
00:00:22]} O-O {[%clk 00:14:37]} {[%emt 00:00:14]} 7. e3 {[%clk 00:14:16]}
{[%emt 00:00:06]} c6 {[%clk 00:14:21]} {[%emt 00:00:19]} 8. Rc1 {[%clk
00:14:09]} {[%emt 00:00:09]} Nbd7 {[%clk 00:14:22]} {[%emt 00:00:02]} 9. Bd3
{[%clk 00:13:54]} {[%emt 00:00:18]} Re8 {[%clk 00:13:54]} {[%emt 00:00:31]} 10.
O-O {[%clk 00:13:50]} {[%emt 00:00:07]} Qe7 {[%clk 00:13:38]} {[%emt 00:00:19]}
11. a3 {[%clk 00:12:37]} {[%emt 00:01:16]} Bd6 {[%clk 00:13:31]} {[%emt
00:00:10]} 12. cxd5 {[%clk 00:11:37]} {[%emt 00:01:04]} exd5 {[%clk 00:13:31]}
{[%emt 00:00:02]} 13. Nh4 {[%clk 00:11:11]} {[%emt 00:00:29]} g6 {[%clk
00:13:07]} {[%emt 00:00:27]} 14. Nxg6 {[%clk 00:09:48]} {[%emt 00:01:26]} fxg6
{[%clk 00:13:04]} {[%emt 00:00:06]} 15. Bxg6 {[%clk 00:09:48]} {[%emt
00:00:03]} Rd8 {[%clk 00:11:46]} {[%emt 00:01:22]} 16. e4 {[%clk 00:09:06]}
{[%emt 00:00:45]} Nf8 {[%clk 00:11:36]} {[%emt 00:00:12]} 17. Bh5 {[%clk
00:07:16]} {[%emt 00:01:53]} dxe4 {[%clk 00:11:27]} {[%emt 00:00:13]} 18. f3
{[%clk 00:04:17]} {[%emt 00:03:02]} Nxh5 {[%clk 00:11:26]} {[%emt 00:00:04]} 19.
fxe4 {[%clk 00:04:00]} {[%emt 00:00:19]} Qh4 {[%clk 00:10:39]} {[%emt
00:00:50]} 20. Qb3+ {[%clk 00:01:21]} {[%emt 00:02:42]} Kh8 {[%clk 00:09:58]}
{[%emt 00:00:45]} 21. Rf3 {[%clk 00:00:17]} {[%emt 00:01:07]} Qxh2+ {[%clk
00:09:56]} {[%emt 00:00:06]} 22. Kf1 {[%clk 00:00:11]} {[%emt 00:00:08]} Bg4
{[%clk 00:09:35]} {[%emt 00:00:24]} 23. Qf7 {[%clk 00:00:11]} {[%emt 00:00:04]}
Bxf3 {[%clk 00:09:20]} {[%emt 00:00:18]} 0-1

[Event "15. ročník Dobrovický rapid Tereos TTD a.s."]
[Site "Dobrovice, Czech Republic"]
[Date "2020.02.29"]
[Round "3.14"]
[White "Sorm Daniel"]
[Black "Kohout Jan"]
[Result "1-0"]
[TimeControl "15m + 3s / tah"]
[WhiteElo "2310"]
[BlackElo "1850"]

1. d4 {[%clk 00:15:05]} {[%emt 00:00:59]} Nf6 {[%clk 00:15:04]} {[%emt
00:00:05]} 2. c4 {[%clk 00:15:07]} {[%emt 00:00:01]} e6 {[%clk 00:15:05]}
{[%emt 00:00:01]} 3. Nc3 {[%emt 00:00:01]} d5 4. cxd5 {[%clk 00:15:03]} {[%emt
00:00:04]} exd5 {[%clk 00:15:06]} {[%emt 00:00:02]} 5. Bg5 {[%clk 00:15:04]}
{[%emt 00:00:02]} c6 {[%clk 00:15:04]} {[%emt 00:00:05]} 6. Qc2 {[%clk
00:15:02]} {[%emt 00:00:04]} Be7 {[%clk 00:15:05]} {[%emt 00:00:03]} 7. e3
{[%clk 00:15:04]} {[%emt 00:00:02]} O-O {[%clk 00:15:01]} {[%emt 00:00:07]} 8.
Bd3 {[%clk 00:15:05]} {[%emt 00:00:01]} h6 {[%clk 00:15:03]} {[%emt 00:00:02]}
9. Bh4 {[%clk 00:14:58]} {[%emt 00:00:10]} Re8 {[%clk 00:14:22]} {[%emt
00:00:43]} 10. Nge2 {[%clk 00:14:49]} {[%emt 00:00:12]} Ne4 {[%clk 00:14:09]}
{[%emt 00:00:16]} 11. Bxe7 {[%clk 00:14:44]} {[%emt 00:00:08]} Qxe7 {[%clk
00:14:09]} {[%emt 00:00:03]} 12. Bxe4 {[%clk 00:14:24]} {[%emt 00:00:23]} dxe4
{[%clk 00:14:10]} {[%emt 00:00:02]} 13. O-O {[%clk 00:14:24]} {[%emt 00:00:03]}
b6 {[%clk 00:13:35]} {[%emt 00:00:38]} 14. f3 {[%clk 00:14:05]} {[%emt
00:00:22]} exf3 {[%clk 00:10:18]} {[%emt 00:03:20]} 15. Rxf3 {[%clk 00:14:06]}
{[%emt 00:00:02]} Nd7 {[%clk 00:10:19]} {[%emt 00:00:02]} 16. Raf1 {[%clk
00:12:17]} {[%emt 00:01:52]} Nf6 {[%clk 00:09:05]} {[%emt 00:01:17]} 17. e4
{[%clk 00:12:00]} {[%emt 00:00:20]} Bg4 {[%clk 00:09:04]} {[%emt 00:00:04]} 18.
Rf4 {[%clk 00:11:20]} {[%emt 00:00:43]} Bxe2 {[%clk 00:08:47]} {[%emt
00:00:20]} 19. Qxe2 {[%clk 00:11:17]} {[%emt 00:00:06]} Rad8 {[%clk 00:08:45]}
{[%emt 00:00:05]} 20. Rxf6 {[%clk 00:07:46]} {[%emt 00:03:34]} gxf6 {[%clk
00:08:37]} {[%emt 00:00:11]} 21. Qg4+ {[%clk 00:07:48]} Kh8 {[%clk 00:07:27]}
{[%emt 00:01:13]} 22. Qh4 {[%clk 00:07:38]} {[%emt 00:00:13]} Kg7 {[%clk
00:06:40]} {[%emt 00:00:49]} 23. Rf3 {[%clk 00:07:10]} {[%emt 00:00:32]} Rh8
{[%clk 00:06:14]} {[%emt 00:00:30]} 24. e5 {[%clk 00:06:55]} {[%emt 00:00:18]}
Kf8 {[%clk 00:04:46]} {[%emt 00:01:31]} 25. Rxf6 {[%clk 00:06:53]} {[%emt
00:00:05]} Kg8 {[%emt 00:01:27]} 1-0

[ePGN "0.1;DGT LiveChess/2.2.5"]

[Event "15. ročník Dobrovický rapid Tereos TTD a.s."]
[Site "Dobrovice, Czech Republic"]
[Date "2020.02.29"]
[Round "4.1"]
[White "Suran Jan"]
[Black "Plat Vojtech"]
[Result "0-1"]
[TimeControl "15m + 3s / tah"]
[WhiteElo "2335"]
[BlackElo "2553"]

1. e4 {[%clk 00:15:05]} e5 {[%clk 00:15:05]} {[%emt 00:00:01]} 2. Nf3 {[%clk
00:15:05]} {[%emt 00:00:02]} Nc6 {[%clk 00:15:07]} {[%emt 00:00:01]} 3. Bb5
{[%clk 00:14:57]} {[%emt 00:00:11]} a6 {[%clk 00:15:08]} {[%emt 00:00:02]} 4.
Ba4 {[%clk 00:14:59]} g6 {[%clk 00:15:10]} {[%emt 00:00:03]} 5. O-O {[%clk
00:14:53]} {[%emt 00:00:09]} Bg7 {[%clk 00:15:11]} {[%emt 00:00:01]} 6. c3
{[%clk 00:14:52]} {[%emt 00:00:04]} Nge7 {[%clk 00:15:12]} {[%emt 00:00:02]} 7.
d4 {[%clk 00:14:51]} {[%emt 00:00:04]} exd4 {[%clk 00:15:14]} {[%emt 00:00:02]}
8. cxd4 {[%clk 00:14:53]} O-O {[%clk 00:15:11]} {[%emt 00:00:06]} 9. d5 {[%clk
00:14:44]} {[%emt 00:00:11]} b5 {[%clk 00:14:58]} {[%emt 00:00:15]} 10. Bc2
{[%clk 00:13:51]} {[%emt 00:00:56]} Na5 {[%clk 00:14:58]} {[%emt 00:00:04]} 11.
Bd2 {[%clk 00:10:55]} {[%emt 00:02:59]} Nc4 {[%clk 00:14:39]} {[%emt 00:00:21]}
12. Bc3 {[%clk 00:10:53]} {[%emt 00:00:06]} Nxb2 {[%clk 00:14:16]} {[%emt
00:00:26]} 13. Qc1 {[%clk 00:10:12]} {[%emt 00:00:44]} Nc4 {[%clk 00:14:13]}
{[%emt 00:00:06]} 14. Bxg7 {[%clk 00:10:08]} {[%emt 00:00:08]} Kxg7 {[%clk
00:14:15]} {[%emt 00:00:01]} 15. Bb3 {[%clk 00:09:31]} {[%emt 00:00:39]} Nb6
{[%clk 00:09:01]} {[%emt 00:05:17]} 16. Qc3+ {[%clk 00:09:14]} {[%emt
00:00:21]} f6 {[%clk 00:09:03]} 17. Nbd2 {[%clk 00:09:04]} {[%emt 00:00:12]} d6
{[%clk 00:08:54]} {[%emt 00:00:12]} 18. Rac1 {[%clk 00:09:02]} {[%emt
00:00:05]} Ra7 {[%clk 00:08:56]} {[%emt 00:00:02]} 19. Nd4 {[%clk 00:08:55]}
{[%emt 00:00:10]} Bd7 {[%clk 00:08:21]} {[%emt 00:00:37]} 20. f4 {[%clk
00:08:02]} {[%emt 00:00:56]} a5 {[%clk 00:08:16]} {[%emt 00:00:07]} 21. a3
{[%clk 00:07:52]} {[%emt 00:00:13]} Qb8 {[%clk 00:06:18]} {[%emt 00:02:01]} 22.
N2f3 {[%clk 00:07:37]} {[%emt 00:00:18]} b4 {[%clk 00:06:07]} {[%emt 00:00:14]}
23. axb4 {[%clk 00:07:32]} {[%emt 00:00:08]} axb4 {[%clk 00:06:09]} {[%emt
00:00:01]} 24. Qxb4 {[%clk 00:07:14]} {[%emt 00:00:21]} Na4 {[%clk 00:05:50]}
{[%emt 00:00:22]} 25. Qxb8 {[%clk 00:06:22]} {[%emt 00:00:55]} Rxb8 {[%clk
00:05:52]} 26. Bxa4 {[%clk 00:06:20]} {[%emt 00:00:06]} Bxa4 {[%clk 00:05:54]}
{[%emt 00:00:02]} 27. Ne6+ {[%clk 00:05:54]} {[%emt 00:00:29]} Kf7 {[%clk
00:05:56]} {[%emt 00:00:01]} 28. Rxc7 {[%clk 00:05:50]} {[%emt 00:00:07]} Rxc7
{[%clk 00:05:57]} {[%emt 00:00:02]} 29. Nxc7 {[%clk 00:05:52]} {[%emt
00:00:01]} Rc8 {[%clk 00:05:03]} {[%emt 00:00:56]} 30. Ne6 {[%clk 00:05:46]}
{[%emt 00:00:10]} h6 {[%clk 00:03:51]} {[%emt 00:01:16]} 31. Nfd4 {[%clk
00:05:21]} {[%emt 00:00:28]} f5 {[%clk 00:03:46]} {[%emt 00:00:08]} 32. Ra1
{[%clk 00:05:01]} {[%emt 00:00:22]} Rc4 {[%clk 00:03:35]} {[%emt 00:00:14]} 33.
exf5 {[%clk 00:03:35]} {[%emt 00:01:30]} gxf5 {[%clk 00:03:33]} {[%emt
00:00:05]} 34. Re1 {[%clk 00:03:07]} {[%emt 00:00:30]} Bd7 {[%clk 00:03:34]}
{[%emt 00:00:02]} 35. g3 {[%clk 00:01:06]} {[%emt 00:02:05]} Kf6 {[%clk
00:01:57]} {[%emt 00:01:40]} 36. Nf8 {[%clk 00:00:52]} {[%emt 00:00:17]} Bc8
{[%clk 00:01:59]} 37. Nde6 {[%clk 00:00:28]} {[%emt 00:00:28]} Nxd5 {[%clk
00:01:49]} {[%emt 00:00:13]} 38. Nh7+ {[%clk 00:00:21]} {[%emt 00:00:10]} Kf7
{[%clk 00:01:51]} {[%emt 00:00:01]} 39. Nd8+ {[%clk 00:00:12]} {[%emt
00:00:12]} Kg7 {[%clk 00:01:52]} {[%emt 00:00:01]} 40. Rd1 {[%clk 00:00:07]}
{[%emt 00:00:08]} Ne7 {[%emt 00:00:51]} 41. Nf8 {[%emt 00:00:02]} Kf6 0-1

[Event "15. ročník Dobrovický rapid Tereos TTD a.s."]
[Site "Dobrovice, Czech Republic"]
[Date "2020.02.29"]
[Round "4.2"]
[White "Zwardon Vojtech"]
[Black "Hosticka Frantisek"]
[Result "1-0"]
[TimeControl "15m + 3s / tah"]
[WhiteElo "2460"]
[BlackElo "2106"]

1. c4 {[%clk 00:15:05]} {[%emt 00:00:01]} e5 {[%clk 00:15:05]} {[%emt
00:00:01]} 2. g3 {[%clk 00:15:07]} {[%emt 00:00:01]} Nf6 {[%clk 00:15:06]}
{[%emt 00:00:02]} 3. Bg2 {[%clk 00:15:10]} Nc6 {[%clk 00:15:00]} {[%emt
00:00:09]} 4. Nf3 {[%clk 00:15:11]} {[%emt 00:00:01]} Bc5 {[%clk 00:14:52]}
{[%emt 00:00:10]} 5. O-O {[%clk 00:15:13]} {[%emt 00:00:02]} O-O {[%clk
00:14:45]} {[%emt 00:00:10]} 6. Nxe5 {[%clk 00:15:15]} {[%emt 00:00:01]} Bxf2+
{[%clk 00:13:06]} {[%emt 00:01:42]} 7. Rxf2 {[%clk 00:15:17]} {[%emt 00:00:02]}
Nxe5 {[%clk 00:13:08]} 8. d3 {[%clk 00:14:59]} {[%emt 00:00:20]} Neg4 {[%clk
00:11:39]} {[%emt 00:01:32]} 9. Rf4 {[%clk 00:14:45]} {[%emt 00:00:16]} Qe7
{[%clk 00:11:09]} {[%emt 00:00:35]} 10. e4 {[%clk 00:14:02]} {[%emt 00:00:45]}
Qc5+ {[%clk 00:08:27]} {[%emt 00:02:45]} 11. d4 {[%clk 00:14:05]} Qxc4 {[%clk
00:07:41]} {[%emt 00:00:49]} 12. e5 {[%clk 00:14:06]} {[%emt 00:00:01]} Nxe5
{[%clk 00:06:44]} {[%emt 00:01:00]} 13. dxe5 {[%clk 00:14:01]} {[%emt
00:00:07]} Qc5+ {[%clk 00:06:42]} {[%emt 00:00:06]} 14. Qd4 {[%clk 00:14:00]}
{[%emt 00:00:04]} Qxc1+ {[%clk 00:06:42]} {[%emt 00:00:02]} 15. Rf1 {[%emt
00:00:49]} 1-0

[Event "15. ročník Dobrovický rapid Tereos TTD a.s."]
[Site "Dobrovice, Czech Republic"]
[Date "2020.02.29"]
[Round "4.4"]
[White "Velicka Petr"]
[Black "Szeko Ludovit"]
[Result "1/2-1/2"]
[TimeControl "15m + 3s / tah"]
[WhiteElo "2395"]
[BlackElo "2051"]

1. e4 {[%clk 00:15:05]} Nf6 {[%clk 00:15:05]} {[%emt 00:00:02]} 2. e5 {[%clk
00:15:07]} Ng8 {[%clk 00:15:07]} {[%emt 00:00:02]} 3. d4 {[%clk 00:15:06]}
{[%emt 00:00:04]} d6 {[%clk 00:15:09]} 4. exd6 {[%clk 00:15:03]} {[%emt
00:00:06]} exd6 {[%clk 00:15:08]} {[%emt 00:00:04]} 5. c4 {[%clk 00:15:04]}
{[%emt 00:00:02]} Nf6 {[%clk 00:15:10]} {[%emt 00:00:01]} 6. Nc3 {[%clk
00:15:06]} Be7 {[%clk 00:15:12]} {[%emt 00:00:01]} 7. Nf3 {[%clk 00:15:01]}
{[%emt 00:00:08]} O-O {[%clk 00:15:13]} {[%emt 00:00:02]} 8. Be2 {[%clk
00:15:02]} {[%emt 00:00:02]} Re8 {[%clk 00:15:15]} 9. O-O {[%clk 00:15:01]}
{[%emt 00:00:05]} c6 {[%clk 00:15:15]} {[%emt 00:00:03]} 10. Be3 {[%clk
00:14:49]} {[%emt 00:00:15]} d5 {[%clk 00:15:17]} {[%emt 00:00:02]} 11. c5
{[%clk 00:14:51]} a5 {[%clk 00:15:19]} {[%emt 00:00:02]} 12. a3 {[%clk
00:14:50]} {[%emt 00:00:04]} Nbd7 {[%clk 00:15:12]} {[%emt 00:00:09]} 13. b4
{[%clk 00:14:51]} {[%emt 00:00:03]} Nf8 {[%clk 00:15:14]} {[%emt 00:00:01]} 14.
Ne5 {[%clk 00:14:28]} {[%emt 00:00:26]} Ng6 {[%clk 00:15:16]} {[%emt 00:00:01]}
15. f4 {[%clk 00:14:21]} {[%emt 00:00:09]} Bf5 {[%clk 00:14:53]} {[%emt
00:00:26]} 16. g4 {[%clk 00:14:06]} {[%emt 00:00:19]} Ne4 {[%clk 00:14:39]}
{[%emt 00:00:16]} 17. Na4 {[%clk 00:13:03]} {[%emt 00:01:06]} Bc8 {[%clk
00:14:14]} {[%emt 00:00:27]} 18. Bf3 {[%clk 00:12:51]} {[%emt 00:00:16]} Nh4
{[%clk 00:13:31]} {[%emt 00:00:47]} 19. Bxe4 {[%clk 00:12:42]} {[%emt
00:00:12]} dxe4 {[%clk 00:13:32]} {[%emt 00:00:02]} 20. Nb6 {[%clk 00:12:43]}
{[%emt 00:00:02]} Ra6 {[%clk 00:13:09]} {[%emt 00:00:25]} 21. f5 {[%clk
00:12:17]} {[%emt 00:00:30]} f6 {[%clk 00:13:07]} {[%emt 00:00:05]} 22. Nec4
{[%clk 00:12:18]} {[%emt 00:00:02]} Nf3+ {[%clk 00:13:07]} {[%emt 00:00:04]} 23.
Rxf3 {[%clk 00:12:20]} {[%emt 00:00:01]} exf3 {[%clk 00:13:09]} 24. Qxf3 {[%clk
00:12:22]} {[%emt 00:00:01]} axb4 {[%clk 00:12:53]} {[%emt 00:00:19]} 25. a4
{[%clk 00:12:22]} {[%emt 00:00:03]} Bf8 {[%clk 00:12:35]} {[%emt 00:00:21]} 26.
Rb1 {[%clk 00:12:14]} {[%emt 00:00:10]} g6 {[%clk 00:12:03]} {[%emt 00:00:35]}
27. Rxb4 {[%clk 00:11:57]} {[%emt 00:00:20]} gxf5 {[%clk 00:12:06]} {[%emt
00:00:01]} 28. gxf5 {[%clk 00:11:58]} {[%emt 00:00:02]} Kh8 {[%clk 00:11:55]}
{[%emt 00:00:13]} 29. Rb2 {[%clk 00:11:44]} {[%emt 00:00:17]} Be7 {[%clk
00:11:50]} {[%emt 00:00:08]} 30. Rg2 {[%clk 00:10:27]} {[%emt 00:01:20]} Rg8
{[%clk 00:11:52]} {[%emt 00:00:01]} 31. Qe4 {[%clk 00:10:20]} {[%emt 00:00:09]}
Rxg2+ {[%clk 00:11:51]} {[%emt 00:00:04]} 32. Kxg2 {[%clk 00:10:22]} {[%emt
00:00:01]} Bf8 {[%clk 00:11:41]} {[%emt 00:00:13]} 33. Bf4 {[%clk 00:10:20]}
{[%emt 00:00:05]} Bd7 {[%clk 00:11:26]} {[%emt 00:00:18]} 34. Bd6 {[%clk
00:10:12]} {[%emt 00:00:11]} Bg7 {[%clk 00:10:56]} {[%emt 00:00:32]} 35. Kf2
{[%clk 00:09:26]} {[%emt 00:00:50]} Qe8 {[%clk 00:10:45]} {[%emt 00:00:14]} 36.
Qxe8+ {[%clk 00:09:20]} {[%emt 00:00:10]} Bxe8 {[%clk 00:10:45]} {[%emt
00:00:03]} 37. Be7 {[%clk 00:09:06]} {[%emt 00:00:17]} Bh5 {[%clk 00:10:13]}
{[%emt 00:00:34]} 38. Ke1 {[%clk 00:08:59]} {[%emt 00:00:10]} Kg8 {[%clk
00:09:39]} {[%emt 00:00:38]} 39. Nd6 {[%clk 00:08:59]} {[%emt 00:00:03]} Ra7
{[%clk 00:09:32]} {[%emt 00:00:08]} 40. Kd2 {[%clk 00:08:36]} {[%emt 00:00:26]}
Bf3 {[%clk 00:09:28]} {[%emt 00:00:08]} 41. Kc2 {[%clk 00:07:47]} {[%emt
00:00:52]} Bg4 {[%clk 00:09:26]} {[%emt 00:00:04]} 42. Kc3 {[%clk 00:07:12]}
{[%emt 00:00:38]} Bf8 {[%clk 00:09:27]} {[%emt 00:00:02]} 43. Bxf6 {[%clk
00:06:49]} {[%emt 00:00:26]} Bxd6 {[%clk 00:09:20]} {[%emt 00:00:11]} 44. cxd6
{[%clk 00:06:50]} {[%emt 00:00:02]} Bxf5 {[%clk 00:09:21]} {[%emt 00:00:02]} 45.
d7 {[%clk 00:06:08]} {[%emt 00:00:45]} Bxd7 {[%clk 00:09:22]} {[%emt 00:00:03]}
46. Nxd7 {[%clk 00:06:10]} {[%emt 00:00:01]} Rxa4 {[%clk 00:09:21]} {[%emt
00:00:03]} 47. Be5 {[%clk 00:06:06]} {[%emt 00:00:07]} Kf7 {[%clk 00:09:06]}
{[%emt 00:00:18]} 48. Nc5 {[%clk 00:06:05]} {[%emt 00:00:04]} Ra7 {[%clk
00:09:05]} {[%emt 00:00:04]} 49. Kb3 {[%clk 00:05:08]} {[%emt 00:01:01]} b6
{[%clk 00:09:06]} {[%emt 00:00:01]} 50. Ne4 {[%clk 00:05:07]} {[%emt 00:00:04]}
Ke6 {[%clk 00:09:04]} {[%emt 00:00:05]} 51. Nc3 {[%clk 00:04:48]} {[%emt
00:00:23]} c5 {[%clk 00:08:43]} {[%emt 00:00:23]} 52. Bh8 {[%clk 00:04:47]}
{[%emt 00:00:03]} cxd4 {[%clk 00:08:33]} {[%emt 00:00:13]} 53. Bxd4 {[%clk
00:04:48]} {[%emt 00:00:02]} Kf5 {[%clk 00:08:18]} {[%emt 00:00:18]} 54. Kb4
{[%clk 00:04:43]} {[%emt 00:00:08]} Rb7 {[%clk 00:08:10]} {[%emt 00:00:11]} 55.
Na4 {[%clk 00:04:30]} {[%emt 00:00:16]} Kg4 {[%clk 00:08:07]} {[%emt 00:00:06]}
56. Kb5 {[%clk 00:04:17]} {[%emt 00:00:15]} Kh3 {[%clk 00:08:09]} {[%emt
00:00:01]} 57. Be5 {[%clk 00:04:19]} Re7 {[%clk 00:08:01]} {[%emt 00:00:11]} 58.
Bg3 {[%clk 00:04:21]} {[%emt 00:00:02]} Re2 {[%clk 00:08:02]} {[%emt 00:00:01]}
1/2-1/2

[Event "15. ročník Dobrovický rapid Tereos TTD a.s."]
[Site "Dobrovice, Czech Republic"]
[Date "2020.02.29"]
[Round "4.5"]
[White "Burdalev Kirill"]
[Black "Joukl Zdenek"]
[Result "1-0"]
[TimeControl "15m + 3s / tah"]
[WhiteElo "2334"]
[BlackElo "2022"]

1. d4 {[%clk 00:15:03]} {[%emt 00:00:02]} d5 {[%clk 00:15:04]} {[%emt
00:00:02]} 2. Bf4 {[%clk 00:15:05]} {[%emt 00:00:01]} Bf5 {[%clk 00:15:05]}
{[%emt 00:00:03]} 3. e3 {[%clk 00:15:07]} {[%emt 00:00:01]} e6 {[%clk
00:14:59]} {[%emt 00:00:08]} 4. Nf3 {[%clk 00:14:55]} {[%emt 00:00:15]} Nf6
{[%clk 00:14:52]} {[%emt 00:00:09]} 5. c4 {[%clk 00:14:57]} {[%emt 00:00:01]}
c6 {[%clk 00:14:47]} {[%emt 00:00:08]} 6. Nc3 {[%clk 00:14:48]} {[%emt
00:00:12]} Bd6 {[%clk 00:14:36]} {[%emt 00:00:14]} 7. Ne5 {[%clk 00:14:16]}
{[%emt 00:00:36]} h6 {[%clk 00:14:23]} {[%emt 00:00:16]} 8. Qb3 {[%clk
00:14:16]} {[%emt 00:00:02]} b6 {[%clk 00:13:24]} {[%emt 00:01:01]} 9. cxd5
{[%clk 00:12:50]} {[%emt 00:01:29]} exd5 {[%clk 00:11:56]} {[%emt 00:01:31]} 10.
Qa4 {[%clk 00:12:29]} {[%emt 00:00:25]} O-O {[%clk 00:11:45]} {[%emt 00:00:14]}
11. Be2 {[%clk 00:12:12]} {[%emt 00:00:21]} b5 {[%clk 00:11:14]} {[%emt
00:00:33]} 12. Qb3 {[%clk 00:12:14]} {[%emt 00:00:01]} a5 {[%clk 00:11:00]}
{[%emt 00:00:16]} 13. a4 {[%clk 00:11:11]} {[%emt 00:01:06]} b4 {[%clk
00:10:49]} {[%emt 00:00:14]} 14. Nd1 {[%clk 00:10:59]} {[%emt 00:00:15]} Re8
{[%clk 00:10:06]} {[%emt 00:00:46]} 15. Rc1 {[%clk 00:10:20]} {[%emt 00:00:42]}
c5 {[%clk 00:09:54]} {[%emt 00:00:12]} 16. Bb5 {[%clk 00:09:10]} {[%emt
00:01:15]} c4 {[%clk 00:09:33]} {[%emt 00:00:24]} 17. Qa2 {[%clk 00:09:13]} Re7
{[%clk 00:08:57]} {[%emt 00:00:40]} 18. O-O {[%clk 00:09:06]} {[%emt 00:00:10]}
Ne4 {[%clk 00:07:07]} {[%emt 00:01:52]} 19. f3 {[%clk 00:07:04]} {[%emt
00:02:05]} Nd2 {[%clk 00:06:38]} {[%emt 00:00:33]} 20. e4 {[%clk 00:07:05]}
{[%emt 00:00:02]} Bxe5 {[%clk 00:05:33]} {[%emt 00:01:08]} 21. dxe5 {[%clk
00:06:43]} {[%emt 00:00:25]} b3 {[%clk 00:05:02]} {[%emt 00:00:34]} 22. Qa3
{[%clk 00:06:27]} {[%emt 00:00:19]} dxe4 {[%clk 00:02:46]} {[%emt 00:02:18]} 23.
Rf2 {[%clk 00:06:17]} {[%emt 00:00:14]} exf3 {[%clk 00:01:25]} {[%emt
00:01:24]} 24. Rxd2 {[%clk 00:06:11]} {[%emt 00:00:10]} Qb6+ {[%clk 00:00:55]}
{[%emt 00:00:33]} 25. Be3 {[%clk 00:06:12]} {[%emt 00:00:02]} Qc7 {[%clk
00:00:49]} {[%emt 00:00:08]} 26. Qd6 {[%clk 00:06:03]} {[%emt 00:00:12]} Kh7
{[%clk 00:00:22]} {[%emt 00:00:31]} 27. Qxc7 {[%clk 00:05:31]} {[%emt
00:00:35]} Rxc7 {[%clk 00:00:23]} {[%emt 00:00:02]} 28. Rxc4 {[%clk 00:05:30]}
{[%emt 00:00:04]} Rxc4 {[%clk 00:00:21]} {[%emt 00:00:05]} 29. Bxc4 {[%clk
00:05:32]} {[%emt 00:00:02]} Nc6 {[%clk 00:00:10]} {[%emt 00:00:13]} 30. Bd5
{[%clk 00:05:08]} {[%emt 00:00:27]} Rc8 {[%clk 00:00:12]} 31. Bxc6 {[%clk
00:05:10]} {[%emt 00:00:02]} Rxc6 {[%clk 00:00:14]} 32. gxf3 {[%clk 00:05:11]}
{[%emt 00:00:02]} Rc4 {[%clk 00:00:04]} {[%emt 00:00:12]} 33. Nc3 {[%clk
00:05:03]} {[%emt 00:00:11]} h5 {[%clk 00:00:04]} {[%emt 00:00:03]} 34. Kf2
{[%clk 00:05:01]} {[%emt 00:00:06]} h4 {[%clk 00:00:05]} {[%emt 00:00:02]} 35.
Bb6 {[%clk 00:04:37]} {[%emt 00:00:27]} h3 {[%clk 00:00:04]} {[%emt 00:00:04]}
36. Bxa5 {[%clk 00:04:31]} {[%emt 00:00:08]} g5 {[%clk 00:00:07]} {[%emt
00:00:01]} 37. Bb6 {[%clk 00:04:15]} {[%emt 00:00:19]} g4 {[%clk 00:00:07]}
{[%emt 00:00:02]} 38. a5 {[%clk 00:03:58]} {[%emt 00:00:19]} Rf4 {[%clk
00:00:09]} {[%emt 00:00:02]} 39. a6 {[%clk 00:03:33]} {[%emt 00:00:28]} Rxf3+
{[%clk 00:00:10]} {[%emt 00:00:02]} 40. Ke1 {[%clk 00:02:42]} {[%emt 00:00:55]}
Bc8 {[%clk 00:00:11]} {[%emt 00:00:01]} 41. a7 {[%clk 00:02:18]} {[%emt
00:00:26]} Ba6 {[%clk 00:00:12]} {[%emt 00:00:02]} 42. Rf2 {[%clk 00:02:19]}
{[%emt 00:00:02]} Re3+ {[%clk 00:00:13]} {[%emt 00:00:02]} 43. Bxe3 {[%clk
00:02:20]} {[%emt 00:00:02]} 1-0